bitfinex-derivatives/quotes_ETHF0:USTF0_20260119
["timestamp","ask_amount","ask_price","bid_price","bid_amount"]
[1768852957193,0.87381641,3223.1,3222.0,0.00320931]
[1768852957393,1.28506548,3223.2,3222.0,0.00320931]
[1768852957596,0.87373979,3223.1,3222.0,0.00320931]
[1768852957894,1.28506548,3223.2,3222.0,0.00320931]
[1768852958202,0.87374113,3223.1,3222.0,0.00320931]
[1768852958404,1.28506548,3223.2,3222.0,0.00320931]
[1768852958592,0.8736938,3223.1,3222.0,0.00320931]
[1768852958795,1.28506548,3223.2,3222.0,0.00320931]
[1768852958995,0.8736933,3223.1,3222.0,0.00320931]
[1768852959196,1.28506548,3223.2,3222.0,0.00320931]
[1768852959506,0.87365769,3223.1,3222.0,0.00320931]
[1768852959801,1.28506548,3223.2,3222.0,0.00320931]
[1768852960002,0.87377726,3223.1,3222.0,0.00320931]
[1768852960196,1.28506548,3223.2,3222.0,0.00320931]
[1768852960398,0.87375381,3223.1,3222.0,0.00320931]
[1768852960596,1.28506548,3223.2,3222.0,0.00320931]
[1768852960796,0.87375363,3223.1,3222.0,0.00320931]
[1768852960997,1.28506548,3223.2,3222.0,0.00320931]
[1768852961198,0.87368829,3223.1,3222.0,0.00320931]
[1768852961397,1.28506548,3223.2,3222.0,0.00320931]
[1768852961701,0.8736879,3223.1,3222.0,0.00320931]
[1768852962002,1.28506548,3223.2,3222.0,0.00320931]
[1768852962202,0.87370403,3223.1,3222.0,0.00320931]
[1768852962406,1.28506548,3223.2,3222.0,0.00320931]
[1768852962609,0.87370355,3223.1,3222.0,0.00320931]
[1768852962804,1.28506548,3223.2,3222.0,0.00320931]
[1768852963009,0.87370355,3223.1,3222.0,0.00320931]
[1768852963305,1.28506548,3223.2,3222.0,0.00320931]
[1768852963511,0.87365563,3223.1,3222.0,0.00320931]
[1768852963804,1.28506548,3223.2,3222.0,0.00320931]
[1768852963996,0.87365717,3223.1,3222.0,0.00320931]
[1768852964197,1.28506548,3223.2,3222.0,0.00320931]
[1768852964397,0.1552,3223.3,3222.0,0.00320931]
[1768852964614,0.87361769,3223.2,3222.0,0.00320931]
[1768852964812,0.1552,3223.3,3222.0,0.00320931]
[1768852965006,0.87361104,3223.2,3222.0,0.00320931]
[1768852965206,0.1552,3223.3,3222.0,0.00320931]
[1768852965406,0.87359176,3223.2,3222.0,0.00320931]
[1768852965612,0.1552,3223.3,3222.0,0.00320931]
[1768852965799,0.87359248,3223.2,3222.0,0.00320931]
[1768852966004,0.1552,3223.3,3222.0,0.00320931]
[1768852966299,0.87359191,3223.2,3222.0,0.00320931]
[1768852966504,0.1552,3223.3,3222.0,0.00320931]
[1768852966801,0.87368646,3223.2,3222.0,0.00320931]
[1768852966999,0.1552,3223.3,3222.0,0.00320931]
[1768852967301,0.87373992,3223.2,3222.0,0.00320931]
[1768852967504,0.1552,3223.3,3222.0,0.00320931]
[1768852967706,0.87374047,3223.2,3222.0,0.00320931]
[1768852967917,0.1552,3223.3,3222.0,0.00320931]
[1768852968117,0.8738246,3223.2,3222.0,0.00320931]
[1768852968317,0.1552,3223.3,3222.0,0.00320931]
[1768852968516,0.87391547,3223.2,3222.0,0.00320931]
[1768852968718,0.1552,3223.3,3222.0,0.00320931]
[1768852968908,0.8739182,3223.2,3222.0,0.00320931]
[1768852969108,0.1552,3223.3,3222.0,0.00320931]
[1768852969308,0.87401745,3223.2,3222.0,0.00320931]
[1768852969509,0.1552,3223.3,3222.0,0.00320931]
[1768852969709,0.87401761,3223.2,3222.0,0.00320931]
[1768852969909,0.1552,3223.3,3222.0,0.00320931]
[1768852970106,0.87401746,3223.2,3222.0,0.00320931]
[1768852970310,0.87401746,3223.1,3222.0,0.00320931]
[1768852970519,0.1552,3223.3,3222.0,0.00320931]
[1768852970721,0.87415705,3223.2,3222.0,0.00320931]
[1768852971018,0.87415705,3223.1,3222.0,0.00320931]
[1768852971219,0.1552,3223.3,3222.0,0.00320931]
[1768852971420,0.87431203,3223.2,3222.0,0.00320931]
[1768852971720,0.87431203,3223.1,3222.0,0.00320931]
[1768852971923,0.1552,3223.3,3222.0,0.00320931]
[1768852972112,0.87430523,3223.2,3222.0,0.00320931]
[1768852972321,0.87430523,3223.1,3222.0,0.00320931]
[1768852972520,0.1552,3223.3,3222.0,0.00320931]
[1768852972818,0.87450253,3223.2,3222.0,0.00320931]
[1768852973117,0.87450253,3223.1,3222.0,0.00320931]
[1768852973319,0.1552,3223.3,3222.0,0.00320931]
[1768852973520,0.87468977,3223.2,3222.0,0.00320931]
[1768852973713,0.87468977,3223.1,3222.0,0.00320931]
[1768852973914,0.1552,3223.3,3222.0,0.00320931]
[1768852974116,2.61069077,3223.2,3222.0,0.00320931]
[1768852974315,0.87469077,3223.1,3222.0,0.00320931]
[1768852986332,0.87469077,3223.1,3222.0,0.14378582]
[1768852990338,0.87469077,3223.0,3222.0,0.14378582]
[1768852990542,0.87469077,3222.9,3222.0,0.14378582]
[1768852992036,1.736,3223.0,3222.0,0.14378582]
[1768852992338,0.87720254,3222.9,3222.0,0.14378582]
[1768852992524,1.736,3223.0,3222.0,0.14378582]
[1768852992726,0.87720906,3222.9,3222.0,0.14378582]
[1768852992930,1.736,3223.0,3222.0,0.14378582]
[1768852993139,0.87720876,3222.9,3222.0,0.14378582]
[1768852993339,1.736,3223.0,3222.0,0.14378582]
[1768852993542,0.87720986,3222.9,3222.0,0.14378582]
[1768852993735,1.736,3223.0,3222.0,0.14378582]
[1768852993928,0.87720942,3222.9,3222.0,0.14378582]
[1768852994132,1.736,3223.0,3222.0,0.14378582]
[1768852994333,0.87714577,3222.9,3222.0,0.14378582]
[1768852994533,1.736,3223.0,3222.0,0.14378582]
[1768852994733,0.87715365,3222.9,3222.0,0.14378582]
[1768852994937,1.736,3223.0,3222.0,0.14378582]
[1768852995244,0.87714456,3222.9,3222.0,0.14378582]
[1768852995443,1.736,3223.0,3222.0,0.00320931]
[1768852995642,0.87712653,3222.9,3222.0,0.00320931]
[1768852995836,1.736,3223.0,3222.0,0.00320931]
[1768852996037,0.87710868,3222.9,3222.0,0.00320931]
[1768852996236,1.736,3223.0,3222.0,0.00320931]
[1768852996438,0.87710408,3222.9,3222.0,0.00320931]
[1768852996640,1.736,3223.0,3222.0,0.00320931]
[1768852996837,0.8770673,3222.9,3222.0,0.00320931]
[1768852997037,1.736,3223.0,3222.0,0.00320931]
[1768852997238,0.87704137,3222.9,3222.0,0.00320931]
[1768852997444,1.736,3223.0,3222.0,0.00320931]
[1768852997646,0.87702949,3222.9,3222.0,0.00320931]
[1768852997845,1.736,3223.0,3222.0,0.00320931]
[1768852998032,0.87701076,3222.9,3222.0,0.00320931]
[1768852998237,0.87701076,3222.8,3221.6,0.14057651]
[1768852998437,1.736,3223.0,3221.6,0.14057651]
[1768852998637,0.87694837,3222.9,3221.6,0.14057651]
[1768852998833,0.87694837,3222.8,3221.6,0.14057651]
[1768852999036,0.87694837,3222.7,3221.6,0.14057651]
[1768852999339,1.736,3223.0,3221.6,0.14368269]
[1768852999539,0.87674584,3222.9,3221.6,0.14368269]
[1768852999740,2.16181132,3222.8,3221.6,0.14368269]
[1768852999940,0.87674584,3222.7,3221.6,0.14368269]
[1768853000139,0.87674584,3222.7,3221.6,0.00310618]
[1768853002743,0.87674584,3222.7,3221.6,0.14368269]
[1768853002944,1.6771234,3223.5,3221.7,0.1363742]
[1768853003139,0.87592012,3223.4,3221.7,0.1363742]
[1768853003340,0.87592012,3223.3,3221.7,0.1363742]
[1768853003539,0.87592012,3223.2,3221.7,0.1363742]
[1768853003739,1.736,3223.6,3221.7,0.1363742]
[1768853003940,0.87586992,3223.5,3221.7,0.1363742]
[1768853004141,0.87586992,3223.4,3221.7,0.1363742]
[1768853004442,0.87586992,3223.3,3221.7,0.1363742]
[1768853004641,0.87586992,3223.2,3221.7,0.1363742]
[1768853004841,3.02106548,3223.6,3221.7,0.1363742]
[1768853005141,0.87470589,3223.5,3221.7,0.1363742]
[1768853005342,0.87470589,3223.4,3221.7,0.1363742]
[1768853005549,0.87470589,3223.3,3221.7,0.1363742]
[1768853005848,0.87470589,3223.2,3221.7,0.1363742]
[1768853006047,3.02106548,3223.6,3221.7,0.1363742]
[1768853006244,0.87465222,3223.5,3221.7,0.1363742]
[1768853006448,1.28506548,3223.2,3221.7,0.1363742]
[1768853006636,0.87465222,3223.1,3221.7,0.1363742]
[1768853006840,1.28506548,3223.2,3221.7,0.1363742]
[1768853006841,0.87465222,3223.0,3221.7,0.1363742]
[1768853007045,1.28506548,3223.2,3221.7,0.1363742]
[1768853007343,0.8745985,3223.1,3221.7,0.1363742]
[1768853007544,0.8745985,3223.0,3221.7,0.1363742]
[1768853007744,1.28506548,3223.2,3221.7,0.1363742]
[1768853007945,0.87462331,3223.1,3221.7,0.1363742]
[1768853008146,0.87462331,3223.0,3221.7,0.1363742]
[1768853008344,1.28506548,3223.2,3221.7,0.1363742]
[1768853008545,0.8746201,3223.1,3221.7,0.1363742]
[1768853008749,1.28506548,3223.2,3221.7,0.1363742]
[1768853008950,0.87461127,3223.1,3221.7,0.1363742]
[1768853009151,1.28506548,3223.2,3221.7,0.1363742]
[1768853009350,0.87461196,3223.1,3221.7,0.1363742]
[1768853009652,0.87461479,3223.0,3221.7,0.1363742]
[1768853009851,1.28506548,3223.2,3221.7,0.1363742]
[1768853010151,0.87462054,3223.1,3221.7,0.1363742]
[1768853010346,0.87462054,3223.0,3221.7,0.1363742]
[1768853010552,1.28506548,3223.2,3221.7,0.1363742]
[1768853010851,0.87461644,3223.1,3221.7,0.1363742]
[1768853011049,0.87461644,3223.0,3221.7,0.1363742]
[1768853011353,0.87453096,3222.9,3221.7,0.1363742]
[1768853011561,1.28506548,3223.2,3221.7,0.1363742]
[1768853011860,0.87450042,3223.1,3221.7,0.1363742]
[1768853012058,0.87450042,3223.0,3221.7,0.1363742]
[1768853012358,0.87450042,3222.9,3221.7,0.1363742]
[1768853012542,1.28506548,3223.2,3221.7,0.1363742]
[1768853012739,0.87440352,3223.1,3221.7,0.1363742]
[1768853012954,0.87440352,3223.0,3221.7,0.1363742]
[1768853013146,0.87440352,3222.9,3221.7,0.1363742]
[1768853013347,1.28506548,3223.2,3221.7,0.1363742]
[1768853013543,1.736,3222.9,3221.7,0.1363742]
[1768853014359,1.28506548,3223.2,3221.7,0.1363742]
[1768853014556,2.61041213,3223.1,3221.7,0.1363742]
[1768853014740,0.87441213,3223.0,3221.7,0.1363742]
[1768853014945,0.87441213,3223.0,3221.8,0.1363742]
[1768853017560,1.735,3223.1,3221.8,0.1363742]
[1768853017857,0.87440292,3223.0,3221.8,0.1363742]
[1768853018057,1.735,3223.1,3221.8,0.1363742]
[1768853018250,2.15961352,3223.0,3221.8,0.1363742]
[1768853018446,1.2851908,3222.8,3221.8,0.1363742]
[1768853018855,1.2851908,3222.6,3221.8,0.1363742]
[1768853019051,1.2851908,3222.4,3221.6,0.00310618]
[1768853021464,1.2851908,3222.6,3221.6,0.00310618]
[1768853023553,0.15522,3223.0,3221.6,0.13389416]
[1768853023757,1.2851908,3222.8,3221.6,0.13389416]
[1768853030776,0.15522,3223.0,3221.6,0.13389416]
[1768853030971,1.2851908,3222.8,3221.6,0.13389416]
[1768853034279,0.87677979,3222.7,3221.6,0.13389416]
[1768853034477,1.2851908,3222.8,3221.6,0.13389416]
[1768853034678,0.87678177,3222.7,3221.6,0.13389416]
[1768853034880,1.2851908,3222.8,3221.6,0.13389416]
[1768853035067,0.87684429,3222.7,3221.6,0.13389416]
[1768853035268,1.2851908,3222.8,3221.6,0.13389416]
[1768853035468,0.8769256,3222.7,3221.6,0.13389416]
[1768853035677,1.2851908,3222.8,3221.6,0.13389416]
[1768853035978,0.87692567,3222.7,3221.6,0.13389416]
[1768853036174,1.2851908,3222.8,3221.6,0.13389416]
[1768853036374,0.8770289,3222.7,3221.6,0.13389416]
[1768853036577,1.2851908,3222.8,3221.6,0.13389416]
[1768853036772,0.877212,3222.7,3221.6,0.13389416]
[1768853036976,1.2851908,3222.8,3221.6,0.13389416]
[1768853037276,0.8772725,3222.7,3221.6,0.13389416]
[1768853037474,1.2851908,3222.8,3221.6,0.13389416]
[1768853037675,0.87730305,3222.7,3221.6,0.13389416]
[1768853037876,1.2851908,3222.8,3221.6,0.13389416]
[1768853038073,0.87733079,3222.7,3221.6,0.13389416]
[1768853038378,1.4404108,3223.0,3221.7,0.13671321]
[1768853038581,0.87739103,3222.9,3221.7,0.13671321]
[1768853038773,0.87739103,3222.8,3221.7,0.13671321]
[1768853038969,0.87739103,3222.7,3221.7,0.13671321]
[1768853039279,1.735,3223.1,3221.9,0.13671321]
[1768853039480,0.87750643,3223.0,3221.9,0.13671321]
[1768853039786,0.87750643,3222.9,3221.9,0.13671321]
[1768853040080,1.735,3223.1,3221.9,0.13671321]
[1768853040279,0.87756114,3223.0,3221.9,0.13671321]
[1768853040485,0.87756114,3222.9,3221.9,0.13671321]
[1768853040669,1.735,3223.1,3221.9,0.13671321]
[1768853040874,0.87755953,3223.0,3221.9,0.13671321]
[1768853041075,0.87755953,3222.9,3221.9,0.13671321]
[1768853041274,1.735,3223.1,3221.9,0.13671321]
[1768853041477,0.87758075,3223.0,3222.2,1.42190401]
[1768853041671,0.87758075,3222.9,3222.3,0.13671321]
[1768853041878,2.9623142,3223.5,3222.3,0.13671321]
[1768853042180,0.87764799,3223.4,3222.3,0.13671321]
[1768853042385,0.87764799,3223.3,3222.3,0.13671321]
[1768853042579,0.87764799,3223.2,3222.3,0.13671321]
[1768853042883,0.87764799,3223.1,3222.3,0.13671321]
[1768853043078,1.4403808,3223.6,3222.3,0.13671321]
[1768853043277,0.87755194,3223.5,3222.3,0.13671321]
[1768853043476,0.87755194,3223.4,3222.3,0.13671321]
[1768853043678,0.87755194,3223.3,3222.3,0.13671321]
[1768853043882,0.87755194,3223.2,3222.3,0.13671321]
[1768853044072,1.2851908,3223.6,3222.3,0.13671321]
[1768853044271,0.87737943,3223.5,3222.5,0.13671321]
[1768853044477,0.87737943,3223.4,3222.5,0.13671321]
[1768853044675,1.2851908,3223.9,3222.5,1.42190401]
[1768853044883,0.87724256,3223.8,3222.5,1.42190401]
[1768853045084,0.87724256,3223.7,3222.5,1.42190401]
[1768853045281,0.87724256,3223.6,3222.5,1.42190401]
[1768853045481,0.87724256,3223.5,3222.5,1.42190401]
[1768853045681,1.2851908,3223.8,3222.5,1.42190401]
[1768853045986,0.87692766,3223.7,3222.6,0.13671321]
[1768853046190,0.87692766,3223.6,3222.6,0.13671321]
[1768853046383,1.2851908,3223.8,3222.6,0.13671321]
[1768853046584,0.87666081,3223.7,3222.6,0.13671321]
[1768853046783,0.87666081,3223.6,3222.6,0.13671321]
[1768853047086,1.2851908,3223.8,3222.6,0.13671321]
[1768853047282,0.87663568,3223.7,3222.6,0.13671321]
[1768853047482,0.87663568,3223.6,3222.6,0.13671321]
[1768853047786,1.2851908,3223.8,3222.6,0.13671321]
[1768853047986,0.87644107,3223.7,3222.6,0.13671321]
[1768853048179,0.87644107,3223.6,3222.6,0.13671321]
[1768853048486,3.0211908,3224.0,3222.8,0.13671321]
[1768853048788,0.8760662,3223.9,3222.8,0.13671321]
[1768853048981,0.8760662,3223.8,3222.8,0.13671321]
[1768853049184,0.8760662,3223.7,3222.8,0.13671321]
[1768853049385,1.736,3224.0,3222.8,0.13671321]
[1768853049586,0.87579786,3223.9,3222.8,0.13671321]
[1768853049781,0.87579786,3223.8,3222.8,0.13671321]
[1768853049982,0.87580216,3223.7,3222.8,0.13671321]
[1768853050187,1.736,3224.0,3222.8,0.13671321]
[1768853050383,1.2851908,3223.8,3222.8,0.13671321]
[1768853050588,0.87553847,3223.7,3222.8,0.13671321]
[1768853050789,1.2851908,3223.8,3222.8,0.13671321]
[1768853050984,0.87553724,3223.7,3222.8,0.13671321]
[1768853051181,1.2851908,3223.8,3222.8,0.13671321]
[1768853057192,1.2851908,3223.8,3222.5,1.2851908]
[1768853057992,1.2851908,3223.8,3222.5,1.42190401]
[1768853058696,1.2851908,3223.8,3222.6,0.13671321]
[1768853058994,1.2851908,3223.6,3222.6,0.13671321]
[1768853060495,1.2851908,3223.8,3222.6,0.13671321]
[1768853062400,0.87577561,3223.7,3222.6,0.13671321]
[1768853062602,1.2851908,3223.8,3222.6,0.13671321]
[1768853062791,0.87577566,3223.7,3222.6,0.13671321]
[1768853062992,1.2851908,3223.8,3222.6,0.13671321]
[1768853063299,0.87581854,3223.7,3222.6,0.13671321]
[1768853063596,1.2851908,3223.8,3222.6,0.13671321]
[1768853063798,0.87594724,3223.7,3222.6,0.13671321]
[1768853063991,1.2851908,3223.8,3222.6,0.13671321]
[1768853064194,0.87606468,3223.7,3222.6,0.13671321]
[1768853064494,1.2851908,3223.8,3222.6,0.13671321]
[1768853064693,0.87416888,3223.7,3222.6,0.13671321]
[1768853064899,1.2851908,3223.8,3222.6,0.13671321]
[1768853065099,0.8741699,3223.7,3222.6,0.13671321]
[1768853065303,1.2851908,3223.8,3222.6,0.13671321]
[1768853065495,0.87434887,3223.7,3222.6,0.13671321]
[1768853065694,1.2851908,3223.8,3222.6,0.13671321]
[1768853065993,0.8743481,3223.7,3222.6,0.13671321]
[1768853066300,1.2851908,3223.8,3222.6,0.13671321]
[1768853066601,0.87461894,3223.7,3222.6,0.13671321]
[1768853066800,1.2851908,3223.8,3222.6,0.13671321]
[1768853067001,0.87461782,3223.7,3222.6,0.13671321]
[1768853067202,2.16002812,3223.6,3222.6,0.13671321]
[1768853067405,1.2851908,3223.6,3222.6,0.13671321]
[1768853070311,0.87550268,3223.5,3222.6,0.13671321]
[1768853070510,1.2851908,3223.6,3222.6,0.13671321]
[1768853070715,0.87550266,3223.5,3222.6,0.13671321]
[1768853070899,1.2851908,3223.6,3222.6,0.13671321]
[1768853071098,0.87550945,3223.5,3222.6,0.13671321]
[1768853071402,1.2851908,3223.6,3222.6,0.13671321]
[1768853071612,0.87588495,3223.5,3222.6,0.13671321]
[1768853071811,1.2851908,3223.6,3222.6,0.13671321]
[1768853072110,0.87588669,3223.5,3222.6,0.13671321]
[1768853072410,1.2851908,3223.6,3222.6,0.13671321]
[1768853072603,0.87611061,3223.5,3222.6,0.13671321]
[1768853072803,1.2851908,3223.6,3222.6,0.13671321]
[1768853073103,0.87611254,3223.5,3222.6,0.13671321]
[1768853073306,0.8763673,3223.4,3222.6,0.13671321]
[1768853073504,1.2851908,3223.6,3222.6,0.13671321]
[1768853073702,0.87636635,3223.5,3222.6,0.13671321]
[1768853073901,1.2851908,3223.6,3222.6,0.13671321]
[1768853074205,0.87637087,3223.5,3222.6,0.13671321]
[1768853074409,0.87637087,3223.4,3222.6,0.13671321]
[1768853074705,1.2851908,3223.6,3222.6,0.13671321]
[1768853074896,0.87653894,3223.5,3222.6,0.13671321]
[1768853075100,0.87653894,3223.4,3222.6,0.13671321]
[1768853075299,3.5682934,3224.0,3222.6,0.13671321]
[1768853075499,1.17119648,3223.9,3222.6,0.13671321]
[1768853075700,0.87656246,3223.8,3222.6,0.13671321]
[1768853075901,0.87656246,3223.7,3222.6,0.13671321]
[1768853076111,3.5682934,3224.0,3222.6,0.13671321]
[1768853076112,0.87656246,3223.6,3222.6,0.13671321]
[1768853076410,0.87656246,3223.5,3222.6,0.13671321]
[1768853076611,0.87656246,3223.4,3222.6,0.13671321]
[1768853076810,3.5682934,3224.0,3222.6,0.13671321]
[1768853077006,1.1712094,3223.9,3222.6,0.13671321]
[1768853077206,1.1712094,3223.8,3222.6,0.13671321]
[1768853077505,0.87657178,3223.7,3222.6,0.13671321]
[1768853077706,0.87657178,3223.6,3222.6,0.13671321]
[1768853078001,0.87657178,3223.5,3222.6,0.13671321]
[1768853078206,0.87657178,3223.4,3222.6,0.13671321]
[1768853078407,3.5682934,3224.0,3222.6,0.13671321]
[1768853078606,1.17124842,3223.9,3222.6,0.13671321]
[1768853078808,0.8766019,3223.8,3222.6,0.13671321]
[1768853079013,0.8766019,3223.7,3222.6,0.13671321]
[1768853079207,0.8766019,3223.6,3222.6,0.13671321]
[1768853079412,0.8766019,3223.5,3222.6,0.13671321]
[1768853079615,0.8766019,3223.4,3222.6,0.13671321]
[1768853079825,3.5682934,3224.0,3222.6,0.13671321]
[1768853080114,1.17128095,3223.9,3222.6,0.13671321]
[1768853080313,1.17128095,3223.8,3222.6,0.13671321]
[1768853080514,0.87662614,3223.7,3222.6,0.13671321]
[1768853080711,0.87662614,3223.6,3222.6,0.13671321]
[1768853081014,3.5682934,3224.0,3222.6,0.13671321]
[1768853081015,0.87662614,3223.5,3222.6,0.13671321]
[1768853081216,0.87662614,3223.5,3222.3,0.15525]
[1768853081217,0.87662614,3223.4,3222.3,0.15525]
[1768853081414,0.87662614,3223.3,3222.3,0.15525]
[1768853081614,3.11694069,3223.8,3222.3,0.15525]
[1768853081817,1.17116126,3223.7,3222.3,0.15525]
[1768853082018,0.87653363,3223.6,3222.3,0.15525]
[1768853082216,0.87653363,3223.5,3222.3,0.15525]
[1768853082413,0.87653363,3223.4,3222.3,0.15525]
[1768853082712,0.87653363,3223.3,3222.3,0.15525]
[1768853082914,3.11694069,3223.8,3222.3,0.15525]
[1768853083114,1.17105085,3223.7,3222.3,0.15525]
[1768853083413,0.87645097,3223.6,3222.3,0.15525]
[1768853083618,0.87645097,3223.5,3222.3,0.15525]
[1768853083809,0.87645097,3223.4,3222.3,0.15525]
[1768853084009,0.87645097,3223.3,3222.3,0.15525]
[1768853084309,1.43981729,3223.8,3222.3,0.15525]
[1768853084609,1.17091166,3223.7,3222.3,0.15525]
[1768853084908,0.87634676,3223.6,3222.3,0.15525]
[1768853085104,1.43981729,3223.8,3222.3,0.15525]
[1768853085105,0.87634676,3223.5,3222.3,0.15525]
[1768853085302,0.87634676,3223.4,3222.3,0.15525]
[1768853085503,0.87634676,3223.3,3222.3,0.15525]
[1768853085710,1.43981729,3223.8,3222.3,0.15525]
[1768853086006,1.17085379,3223.7,3222.3,0.15525]
[1768853086207,0.87630363,3223.6,3222.3,0.15525]
[1768853086410,0.87630363,3223.5,3222.3,0.15525]
[1768853086614,0.87630363,3223.4,3222.3,0.15525]
[1768853086910,0.87630363,3223.3,3222.3,0.15525]
[1768853087106,1.43981729,3223.8,3222.3,0.15525]
[1768853087311,0.87628219,3223.7,3222.3,0.15525]
[1768853087508,0.87628219,3223.6,3222.3,0.15525]
[1768853087713,0.87628219,3223.5,3222.3,0.15525]
[1768853087920,0.87628219,3223.4,3222.3,0.15525]
[1768853088121,0.87628219,3223.3,3222.3,0.15525]
[1768853088319,1.43981729,3223.8,3222.3,0.15525]
[1768853088520,0.87633037,3223.7,3222.3,0.15525]
[1768853088723,0.87633037,3223.6,3222.3,0.15525]
[1768853089019,0.87633037,3223.5,3222.3,0.15525]
[1768853089319,0.87633037,3223.4,3222.3,0.15525]
[1768853089519,0.87633037,3223.3,3222.3,0.15525]
[1768853089721,1.43981729,3223.8,3222.3,0.15525]
[1768853089923,1.17087032,3223.7,3222.3,0.15525]
[1768853090221,1.43981729,3223.8,3222.3,0.15525]
[1768853090222,0.87631447,3223.6,3222.3,0.15525]
[1768853090422,0.87631447,3223.5,3222.3,0.15525]
[1768853090622,0.87631447,3223.4,3222.3,0.15525]
[1768853090822,0.87631447,3223.3,3222.3,0.15525]
[1768853091116,1.43981729,3223.8,3222.3,0.15525]
[1768853091324,1.17085743,3223.7,3222.3,0.15525]
[1768853091522,0.87630602,3223.6,3222.3,0.15525]
[1768853091718,0.87630602,3223.5,3222.3,0.15525]
[1768853091920,0.87630602,3223.4,3222.3,0.15525]
[1768853092121,0.87630602,3223.3,3222.3,0.15525]
[1768853092316,1.43981729,3223.8,3222.3,0.15525]
[1768853092516,0.87629196,3223.7,3222.3,0.15525]
[1768853092718,0.87629196,3223.6,3222.3,0.15525]
[1768853092918,0.87629196,3223.5,3222.3,0.15525]
[1768853093216,0.87629196,3223.4,3222.3,0.15525]
[1768853093518,0.87629196,3223.3,3222.3,0.15525]
[1768853093719,1.43981729,3223.8,3222.3,0.15525]
[1768853093911,0.87627421,3223.7,3222.3,0.15525]
[1768853094110,0.87627421,3223.6,3222.2,0.13329311]
[1768853094420,0.87627421,3223.5,3222.2,0.13329311]
[1768853094720,0.87627421,3223.4,3222.2,0.13329311]
[1768853094931,0.87627421,3223.3,3222.2,0.13329311]
[1768853095225,0.15519,3223.6,3222.2,0.13329311]
[1768853095421,0.87674687,3223.5,3222.2,0.13329311]
[1768853095621,0.87674687,3223.4,3222.2,0.13329311]
[1768853095833,0.87674687,3223.3,3221.8,0.1416783]
[1768853096122,0.87674687,3223.2,3221.8,0.1416783]
[1768853096315,0.15519,3223.6,3221.8,0.1416783]
[1768853096516,0.87672127,3223.5,3221.8,0.1416783]
[1768853096714,0.87672127,3223.4,3221.8,0.1416783]
[1768853096914,0.87672127,3223.3,3221.8,0.1416783]
[1768853097114,0.15519,3223.6,3221.8,0.1416783]
[1768853097321,0.87672965,3223.5,3221.8,0.1416783]
[1768853097517,0.87672965,3223.4,3221.8,0.1416783]
[1768853097716,0.87672965,3223.3,3221.8,0.1416783]
[1768853097921,0.15519,3223.6,3221.8,0.1416783]
[1768853098223,0.87670752,3223.5,3221.8,0.1416783]
[1768853098413,0.87670752,3223.4,3221.8,0.1416783]
[1768853098614,0.87670752,3223.3,3221.8,0.1416783]
[1768853098818,0.15519,3223.6,3221.8,0.1416783]
[1768853099019,0.87669097,3223.5,3221.8,0.1416783]
[1768853099215,0.87669097,3223.4,3221.8,0.1416783]
[1768853099417,0.87669097,3223.3,3221.8,0.1416783]
[1768853099625,0.15519,3223.6,3221.8,0.1416783]
[1768853099826,0.87667138,3223.5,3221.8,0.1416783]
[1768853100025,0.87667138,3223.4,3221.8,0.1416783]
[1768853100228,0.87667138,3223.3,3221.8,0.1416783]
[1768853100426,0.17584212,3223.6,3221.8,0.1416783]
[1768853100623,0.87668476,3223.5,3221.8,0.1416783]
[1768853100931,1.28463729,3223.0,3221.8,0.1416783]
[1768853101125,0.87668476,3222.9,3221.8,0.1416783]
[1768853101332,1.28463729,3223.0,3221.8,0.1416783]
[1768853101628,0.87627719,3222.9,3221.8,0.1416783]
[1768853101837,1.6771234,3223.5,3221.8,0.1416783]
[1768853102130,2.39134454,3223.8,3221.8,0.1416783]
[1768853102131,0.87633153,3223.4,3221.8,0.1416783]
[1768853102331,1.6771234,3223.7,3221.9,0.1416783]
[1768853102332,0.87633153,3223.3,3221.9,0.1416783]
[1768853102527,0.87633153,3223.2,3221.9,0.1416783]
[1768853102721,3.5673034,3223.8,3221.9,0.1416783]
[1768853102921,1.17066004,3223.7,3221.9,0.1416783]
[1768853103121,0.87628265,3223.6,3221.9,0.1416783]
[1768853103321,0.87628265,3223.5,3221.9,0.1416783]
[1768853103522,0.87628265,3223.4,3221.9,0.1416783]
[1768853103722,0.87628265,3223.3,3221.9,0.1416783]
[1768853103922,0.87628265,3223.2,3221.9,0.1416783]
[1768853104123,3.5673034,3223.8,3221.9,0.1416783]
[1768853104432,1.17114029,3223.7,3221.9,0.1416783]
[1768853104633,0.87676685,3223.6,3221.9,0.1416783]
[1768853104828,0.87676685,3223.5,3221.9,0.1416783]
[1768853105033,0.87676685,3223.4,3221.9,0.1416783]
[1768853105230,0.87676685,3223.3,3221.9,0.1416783]
[1768853105428,0.87676685,3223.2,3221.9,0.1416783]
[1768853105629,3.5673034,3223.8,3221.9,0.1416783]
[1768853105831,1.1711556,3223.7,3221.9,0.1416783]
[1768853106025,0.8767768,3223.6,3221.9,0.1416783]
[1768853106234,0.8767768,3223.5,3221.9,0.1416783]
[1768853106431,0.8767768,3223.4,3221.9,0.1416783]
[1768853106631,0.8767768,3223.3,3221.9,0.1416783]
[1768853106833,0.8767768,3223.2,3221.9,0.1416783]
[1768853107031,3.5673034,3223.8,3221.9,0.1416783]
[1768853107230,1.17118157,3223.7,3221.9,0.1416783]
[1768853107434,1.17118157,3223.6,3221.9,0.1416783]
[1768853107633,0.87679682,3223.5,3221.9,0.1416783]
[1768853107830,0.87679682,3223.4,3221.9,0.1416783]
[1768853108029,0.87679682,3223.3,3221.9,0.1416783]
[1768853108234,0.87679682,3223.2,3221.9,0.1416783]
[1768853108438,3.5673034,3223.8,3221.9,0.1416783]
[1768853108737,2.84837361,3223.7,3221.9,0.1416783]
[1768853109036,1.17125021,3223.6,3221.9,0.1416783]
[1768853109236,0.87685126,3223.5,3221.9,0.1416783]
[1768853109430,0.87685126,3223.4,3221.9,0.1416783]
[1768853109736,0.87685126,3223.3,3221.9,0.1416783]
[1768853109931,0.87685126,3223.2,3221.9,0.1416783]
[1768853110132,1.6771234,3223.7,3221.9,0.1416783]
[1768853110333,1.17130448,3223.6,3221.9,0.1416783]
[1768853110630,0.87689454,3223.5,3221.9,0.1416783]
[1768853110837,0.87689454,3223.4,3221.9,0.1416783]
[1768853111022,0.87689454,3223.3,3221.9,0.1416783]
[1768853111229,0.87689454,3223.2,3221.9,0.1416783]
[1768853111429,1.6771234,3223.7,3221.9,0.1416783]
[1768853111639,1.1713937,3223.6,3221.9,0.1416783]
[1768853111935,0.87696181,3223.5,3221.9,0.1416783]
[1768853112137,0.87696181,3223.4,3221.9,0.1416783]
[1768853112339,0.87696181,3223.3,3221.9,0.1416783]
[1768853112635,0.87696181,3223.2,3221.9,0.1416783]
[1768853112830,1.6771234,3223.7,3221.9,0.1416783]
[1768853113031,1.17139402,3223.6,3221.9,0.1416783]
[1768853113232,0.8769617,3223.5,3221.9,0.1416783]
[1768853113529,1.6771234,3223.7,3221.9,0.1416783]